Cogmind - Beta 12 @@@ ROGUE MODE // 2023.03.13 @ 06:50:24 Player: Peregrine Result: Destroyed by Y-45 Defender with Heavy Assault Rifle Performance ------------- Evolutions (2) 1000 Regions Visited (5) 1000 Robots Destroyed (98) 490 Value Destroyed (2144) 2144 Prototype IDs (10) 200 Alien Tech Used (0) 0 Bonus (230) 230 TOTAL SCORE: 5064 Bonus ------- High Alert Combat Kills 230 Cogmind --------- Core Integrity 0/550 Matter 134/300 Energy 56/100 System Corruption 4% Temperature Cool (95) Movement Core (50) Location -8/Storage Parts ------- > --- POWER (2) -------- (None) > --- PROPULSION (4) --- Aerolev Unit Improved VTOL Module > --- UTILITY (3) ------ Improved Heat Sink Improved Signal Interpreter > --- WEAPON (2) ------- Precision Beam Rifle > --- INVENTORY (5) ---- Light Nuclear Core Aerolev Unit Small Storage Unit Flak Cannon Peak State ------------ > --- POWER ------------ Light Nuclear Core Light Nuclear Core > --- PROPULSION ------- Surge Thruster Improved VTOL Module Improved VTOL Module Improved VTOL Module > --- UTILITY ---------- Small Storage Unit Advanced Weight Redist. System Improved Signal Interpreter > --- WEAPON ----------- Advanced Beam Rifle Flak Cannon > --- INVENTORY -------- Advanced Treads Airjet Aerolev Unit Aerolev Unit Surge Thruster Surge Thruster Improved Sensor Array [Rating: 37] Favorites ----------- Power Light Ion Engine Engine Light Ion Engine Power Core Light Nuclear Core Propulsion Flight Unit Treads Light Treads Leg Aluminum Leg Wheel Compact Wheel Hover Unit Hover Unit Flight Unit Flight Unit Utility Signal Interpreter Device Cooling System Storage Small Storage Unit Processor Signal Interpreter Protection Propulsion Shielding Weapon Improved EM Shotgun Energy Gun Improved EM Shotgun Energy Cannon Advanced Beam Cannon Ballistic Gun Light Assault Rifle Ballistic Cannon Flak Cannon Launcher Improved Grenade Launcher Build | -11 -10 -9 -9 -8 -8 ------- Run | Jun Mat Mat Min Mat Sto Slots Evolved 4 | . . 2 . 2 . Power 1 | . . 1 . . . Propulsion 2 | . . 1 . 1 . Utility 1 | . . . . 1 . Weapon . | . . . . . . Parts Attached 108 | 5 12 33 . 43 15 Power 17 | 1 1 8 . 5 2 Engine 12 | 1 1 8 . 2 . Core 5 | . . . . 3 2 Reactor . | . . . . . . Propulsion 38 | 2 6 6 . 18 6 Treads 1 | . . 1 . . . Leg 4 | . . 4 . . . Wheel 2 | 2 . . . . . Hover 10 | . 4 . . 5 1 Flight 21 | . 2 1 . 13 5 Utility 13 | 1 . 5 . 4 3 Device 6 | . . 3 . . 3 Storage 3 | 1 . . . 2 . Processor 3 | . . 1 . 2 . Hackware . | . . . . . . Protection 1 | . . 1 . . . Artifact . | . . . . . . Weapon 40 | 1 5 14 . 16 4 Energy Gun 23 | . 1 8 . 11 3 Energy Cannon 1 | . . 1 . . . Ballistic Gun 6 | 1 4 1 . . . Ballistic Cannon 8 | . . 4 . 3 1 Launcher 2 | . . . . 2 . Special Weapon . | . . . . . . Impact Weapon . | . . . . . . Slashing Weapon . | . . . . . . Piercing Weapon . | . . . . . . Special Melee Weapon . | . . . . . . Unidentified Prototypes 8 | . . 3 . 4 1 Parts Lost 22 | . . 4 . 10 8 Power 5 | . . 1 . 3 1 Propulsion 9 | . . 2 . 3 4 Utility 1 | . . . . . 1 Weapon 7 | . . 1 . 4 2 Highest Loss Streak 7 | . . 1 . 5 7 To Critical Strikes . | . . . . . . Average Slot Usage (%) 82 | . 79 84 100 82 81 Engine 10 | . 14 13 22 7 . Core 1 | . . . . 2 9 Treads 1 | . . 2 . . . Leg 9 | . . 16 33 4 . Hover 5 | . 20 . . 7 1 Flight 15 | . 3 11 . 22 32 Device 4 | . . 4 11 4 9 Storage 5 | . 14 . . 8 7 Processor 9 | . . 10 11 12 9 Protection 2 | . . 4 . . . Energy Gun 8 | . 4 9 11 8 10 Ballistic Gun 2 | . 18 . . . . Ballistic Cannon 5 | . . 8 . 3 1 Naked Turns . | . . . . . . Heaviest Build 24 | 9 10 20 20 24 23 Greatest Support 30 | 26 26 30 30 30 27 Greatest Overweight (x) 3 | . 1 3 . 3 3 Average Overweight (x) . | . . . . . . Largest Inventory Capacity 8 | 8 8 8 5 8 8 Average Capacity 6 | 6 8 5 5 7 7 Most Carried 8 | 2 8 6 5 8 8 Average Carried 5 | . 3 4 5 6 7 Final Capacity 8 | 8 8 5 5 8 5 Final Carried 8 | . 7 5 5 8 4 Class Distribution -------------------- 49% | Scavenger-Mutant 25% | Mutant 16% | Scavenger-Sprinter 7% | Sprinter Dominant Class ---------------- Mutant | -10/Materials Scavenger-Mutant | -9/Materials Scavenger-Mutant | -9/Mines Scavenger-Sprinter | -8/Materials Scavenger-Sprinter | -8/Storage Resources | -11 -10 -9 -9 -8 -8 ----------- Run | Jun Mat Mat Min Mat Sto Matter Collected 1914 | 238 192 867 . 433 184 Remotely . | . . . . . . Salvage Created 2952 | . 347 1140 . 1169 296 Parts 194 | . 30 87 . 62 15 Haulers Intercepted 6 | . . 3 . 2 1 Recyclers Shooed 5 | . 1 2 . 2 . Parts Field Recycled . | . . . . . . Retrieved Matter . | . . . . . . Parts Self-Destructed . | . . . . . . Prevented . | . . . . . . Kills | -11 -10 -9 -9 -8 -8 ------- Run | Jun Mat Mat Min Mat Sto Combat Hostiles Destroyed 57 | . 10 19 . 23 5 Guns 29 | . 10 5 . 11 3 Cannons 22 | . . 14 . 6 2 AOE 6 | . . . . 6 . Classes Destroyed 11 | . 5 5 . 1 . Worker 9 | . 1 6 . 2 . Builder 10 | . . 7 . 3 . Tunneler 4 | . . 3 . 1 . Hauler 6 | . . 3 . 2 1 Recycler 5 | . 2 1 . 2 . Mechanic 2 | . 1 . . 1 . Watcher 5 | . . 4 . 1 . Swarmer 15 | . 9 2 . 4 . Cutter 3 | . . . . 3 . Grunt 30 | . 1 13 . 14 2 Sentry 9 | . . 4 . 2 3 Best Kill Streak 9 | . 4 9 . 9 3 Combat Bots Only 6 | . 3 4 . 6 3 Max Kills in Single Turn 4 | . 2 2 . 4 1 Gunslinging 1 | . 1 . . . . Exploded 3 | . . . . 3 . Melee . | . . . . . . Uniques/NPCs Destroyed . | . . . . . . Combat | -11 -10 -9 -9 -8 -8 -------- Run | Jun Mat Mat Min Mat Sto Damage Taken 3084 | . 296 926 . 897 965 Core 819 | . 89 167 . 181 382 Absorbed by Shields . | . . . . . . Redirected to Shielding 43 | . . 43 . . . Regen/Repaired (Parts) 13 | . . . . . 13 Core Remaining (%) 74 | 100 64 . 58 . . Volleys Fired 242 | . 38 90 . 94 20 Largest 2 | . 2 2 . 2 2 Hottest 122 | . 60 113 . 108 122 Shots Fired 366 | . 76 149 . 106 35 Gun 229 | . 76 51 . 72 30 Cannon 136 | . . 98 . 33 5 Launcher 1 | . . . . 1 . Special . | . . . . . . Kinetic 196 | . 60 98 . 33 5 Thermal 79 | . 16 2 . 31 30 Explosive 1 | . . . . 1 . Electromagnetic 90 | . . 49 . 41 . Robot Hit Streak 19 | . 9 10 . 18 19 Robot Miss Streak 15 | . 5 15 . 11 2 Penetration Max . | . . . . . . Secondary Targets 5 | . 2 1 . 1 1 Max Gunslinging Chain 1 | . 1 1 . 1 1 Shots Hit Robots 283 | . 44 119 . 90 30 Core Hits 213 | . 21 100 . 78 14 Critical Kills . | . . . . . . Critical Parts Destroyed 1 | . 1 . . . . Critical Strikes 3 | . 1 . . 1 1 Burn 2 | . . . . 1 1 Destroy 1 | . 1 . . . . Melee Attacks . | . . . . . . Impact . | . . . . . . Slashing . | . . . . . . Piercing . | . . . . . . Sneak Attacks . | . . . . . . Combat Hostiles . | . . . . . . Follow-up Attacks . | . . . . . . Damage Inflicted 5408 | . 411 2031 . 2449 517 Guns 2459 | . 401 579 . 1040 439 Cannons 1773 | . . 1146 . 574 53 Explosions 1143 | . . 283 . 835 25 Melee . | . . . . . . Ramming 33 | . 10 23 . . . Kinetic 2072 | . 299 1146 . 574 53 Thermal 1786 | . 102 242 . 1003 439 Explosive 274 | . . 56 . 193 25 Electromagnetic 1243 | . . 564 . 679 . Impact . | . . . . . . Slashing . | . . . . . . Piercing . | . . . . . . Highest Corruption 4 | . . . . 4 4 Average Corruption 4 | . . . . 4 4 Corruption Purged . | . . . . . . Corruption Blocked . | . . . . . . Effects 8 | . . . . 1 7 Message Errors 1 | . . . . . 1 Matter Fused 2 | . . . . 1 1 Heat Flow Errors 1 | . . . . . 1 Energy Discharges 2 | . . . . . 2 Data Loss (minor) 2 | . . . . . 2 Overload Shots . | . . . . . . Overflow Damage 97 | . . 14 . 62 21 Projectiles . | . . . . . . Explosions 97 | . . 14 . 62 21 Melee . | . . . . . . Knockbacks 64 | . . 42 . 19 3 Impact . | . . . . . . Kinetic 59 | . . 37 . 19 3 Secondary 5 | . . 5 . . . Self-Inflicted Damage 427 | . 5 190 . 178 54 Shots 13 | . . 6 . 6 1 Rammed 1 | . 1 . . . . Targets Rammed 8 | . 1 7 . . . Kicked 7 | . . 7 . . . Crushed . | . . . . . . Highest Temperature 637 | . 84 167 . 204 637 Average Temperature 75 | . 20 46 . 43 244 Received Heat Transfer 804 | . 36 201 . 342 225 Effects 16 | . . . . . 16 Shutdowns 1 | . . . . . 1 Energy Bleed 1 | . . . . . 1 Interference 4 | . . . . . 4 Short Circuit 1 | . . . . . 1 Damage (major) 6 | . . . . . 6 Damage (core) 3 | . . . . . 3 Siege Activations . | . . . . . . Robots Corrupted . | . . . . . . Combat Hostiles . | . . . . . . Parts Fried 4 | . . . . 4 . Impact Corruptions . | . . . . . . Robots Melted . | . . . . . . Combat Hostiles . | . . . . . . Parts Melted 2 | . 1 . . . 1 Heat Transferred 2962 | . 225 387 . 1351 999 Parts Sabotaged . | . . . . . . Parts Stolen . | . . . . . . Parts Stripped . | . . . . . . Power Chain Reactions 11 | . . 5 . 6 . Missiles Intercepted . | . . . . . . Alert | -11 -10 -9 -9 -8 -8 ------- Run | Jun Mat Mat Min Mat Sto Peak Influence 627 | . 280 558 195 627 493 Initial 264 | . . 118 195 76 264 Average 323 | . 108 390 195 332 344 Maximum Alert Level 2 | . 1 2 . 2 2 Low Security (%) 24 | 100 80 10 100 24 . Level 1 41 | . 19 43 . 42 72 Level 2 33 | . . 46 . 33 27 Level 3 . | . . . . . . Level 4 . | . . . . . . Level 5 . | . . . . . . High Security . | . . . . . . Max Security . | . . . . . . Squads Dispatched 11 | . . 4 . 6 1 Investigation 4 | . . 3 . . 1 Extermination . | . . . . . . Reinforcement 7 | . . 1 . 6 . Assault . | . . . . . . Garrison . | . . . . . . Intercept . | . . . . . . Searches Triggered . | . . . . . . Construction Impeded 2 | . . . . 2 . Haulers Reinforced . | . . . . . . Active Scanning Responses . | . . . . . . Cargo Convoy Interrupts . | . . . . . . Stealth | -11 -10 -9 -9 -8 -8 --------- Run | Jun Mat Mat Min Mat Sto Distress Signals 6 | . 1 2 . 1 2 Communications Jammed . | . . . . . . Distress Signals . | . . . . . . Times Spotted 80 | . 13 25 . 32 10 Peak Tracking Total 6 | . 4 5 . 5 6 Tactical Retreats 3 | . 1 . . 2 . Traps | -11 -10 -9 -9 -8 -8 ------- Run | Jun Mat Mat Min Mat Sto Traps Triggered 1 | . . 1 . . . Indirectly . | . . . . . . Trap Hack Attempts . | . . . . . . Triggered . | . . . . . . Disarmed . | . . . . . . Reprogrammed . | . . . . . . Reused . | . . . . . . Traps Extracted . | . . . . . . Installed . | . . . . . . Triggered . | . . . . . . Machines | -11 -10 -9 -9 -8 -8 ---------- Run | Jun Mat Mat Min Mat Sto Machines Disabled 5 | . . 1 . 2 2 Max in Single Turn 2 | . . 1 . 2 2 Machines Repaired . | . . . . . . Machines Sabotaged . | . . . . . . Overloaded Fab Kills . | . . . . . . Hacking | -11 -10 -9 -9 -8 -8 --------- Run | Jun Mat Mat Min Mat Sto Machines Accessed 14 | . 1 7 . 3 3 Terminals 11 | . 1 6 . 2 2 Fabricators . | . . . . . . Repair Stations 2 | . . 1 . . 1 Recycling Units 1 | . . . . 1 . Scanalyzers . | . . . . . . Garrison Access . | . . . . . . Total Hacks 42 | . 5 20 . 10 7 Successful 23 | . 2 11 . 6 4 Failed 19 | . 3 9 . 4 3 Catastrophic 1 | . . . . . 1 Database Lockouts . | . . . . . . Manual 23 | . 2 13 . 4 4 Terminals 33 | . 5 16 . 8 4 Fabricators . | . . . . . . Repair Stations 7 | . . 4 . . 3 Recycling Units 2 | . . . . 2 . Scanalyzers . | . . . . . . Garrison Access . | . . . . . . Terminal Hacks 6 | . 1 2 . 3 . Prototype ID Bank 1 | . . . . 1 . Branch Access Points 1 | . . . . 1 . Patrol Status 1 | . . . . 1 . Registered Prototypes 1 | . . 1 . . . Zone Layout 2 | . 1 1 . . . Fabricator Hacks . | . . . . . . Repair Station Hacks 4 | . . 2 . . 2 Scan Component 3 | . . 2 . . 1 Repair 1 | . . . . . 1 Recycling Unit Hacks 1 | . . . . 1 . Retrieve Components 1 | . . . . 1 . Scanalyzer . | . . . . . . Garrison Access Hacks . | . . . . . . Unauthorized Hacks 12 | . 1 7 . 2 2 Terminals 12 | . 1 7 . 2 2 Assimilate 2 | . . 1 . . 1 Botnet 10 | . 1 6 . 2 1 Fabricators . | . . . . . . Repair Stations . | . . . . . . Recycling Units . | . . . . . . Scanalyzers . | . . . . . . Garrison Access . | . . . . . . Data Cores Recovered . | . . . . . . Used . | . . . . . . Hacking Detections 13 | . 1 7 . 2 3 Full Trace Events 3 | . . 2 . . 1 Feedback Events . | . . . . . . Feedback Blocked . | . . . . . . Robot Schematics Acquired . | . . . . . . Robots Built . | . . . . . . Authchips . | . . . . . . Time . | . . . . . . Total Robot Build Rating . | . . . . . . Part Schematics Acquired . | . . . . . . Parts Built . | . . . . . . Authchips . | . . . . . . Time . | . . . . . . Total Part Build Rating . | . . . . . . Parts Repaired 1 | . . . . . 1 Time 60 | . . . . . 60 Parts Recycled . | . . . . . . Recycled Matter . | . . . . . . Retrieved Matter . | . . . . . . Retrieved Components 1 | . . . . 1 . Parts Scanalyzed . | . . . . . . Part Schematics Acquired . | . . . . . . Parts Damaged . | . . . . . . Bothacking | -11 -10 -9 -9 -8 -8 ------------ Run | Jun Mat Mat Min Mat Sto Used RIF Installer . | . . . . . . Robots Hacked . | . . . . . . Non-combat . | . . . . . . Combat . | . . . . . . Robot Hacks Applied . | . . . . . . Relay Couplers Released . | . . . . . . Fabnet Peak Effective % . | . . . . . . Robots Rewired . | . . . . . . Allies Hacked . | . . . . . . Hacks Repelled . | . . . . . . Allies | -11 -10 -9 -9 -8 -8 -------- Run | Jun Mat Mat Min Mat Sto Total Allies 1 | . . . . . 1 Largest Group 1 | . . . . . 1 Highest-Rated Group 26 | . . . . . 26 Highest-Rated Ally 26 | . . . . . 26 Total Orders 1 | . . . . . 1 FOLLOW 1 | . . . . . 1 Ally Attacks . | . . . . . . Total Damage . | . . . . . . Kills . | . . . . . . Allies Corrupted . | . . . . . . Allies Melted . | . . . . . . Intel | -11 -10 -9 -9 -8 -8 ------- Run | Jun Mat Mat Min Mat Sto Robot Analysis Total . | . . . . . . Derelict Logs Recovered . | . . . . . . Drone Launches . | . . . . . . Drone Recoveries . | . . . . . . Exploration | -11 -10 -9 -9 -8 -8 ------------- Run | Jun Mat Mat Min Mat Sto Turns Passed 2192 | 34 296 976 16 628 242 Spaces Moved 1497 | 29 213 619 14 450 172 Core 19 | 7 . . . 4 8 Treads 4 | . . 4 . . . Legs 413 | . . 323 14 76 . Wheels 65 | 22 43 . . . . Hover 233 | . 119 . . 113 1 Flight 763 | . 51 292 . 257 163 Fastest Speed 26 | 50 37 34 120 26 26 Average Speed 66 | 80 58 87 120 52 31 Slowest Speed 280 | 90 117 280 120 200 200 Overloaded Moves . | . . . . . . Propulsion Burnouts . | . . . . . . Robots Hopped 4 | . . 3 . 1 . Cave-ins Triggered . | . . . . . . Exploration Rate (%) 22 | 3 27 47 11 24 21 Regions Visited 5 Branch Regions 2 Pre-discovered Areas 1 | . . . . . 1 Known Exits Taken 3 | . . 1 1 1 . Unknown Exits Taken 2 | 1 1 . . . . Scrap Searched . | . . . . . . Spaces Dug . | . . . . . . Terrain Destroyed 136 | . . 34 . 83 19 Melee . | . . . . . . Projectile . | . . . . . . AOE 136 | . . 34 . 83 19 Terrain Rammed . | . . . . . . Walls Destroyed . | . . . . . . Machines Disabled . | . . . . . . Actions | -11 -10 -9 -9 -8 -8 --------- Run | Jun Mat Mat Min Mat Sto Total 2343 | 40 320 903 13 741 326 Wait 339 | . 30 114 . 88 107 Move 1484 | 28 212 612 13 447 172 Hop 4 | . . 3 . 1 . Pick Up 74 | 6 15 15 . 33 5 Fast Attach 21 | . . 13 . 6 2 Attach 45 | 5 3 9 . 21 7 Detach 19 | . 3 5 . 8 3 Swap 42 | . 9 11 . 16 6 Drop 65 | 1 9 24 . 27 4 Fire 242 | . 38 90 . 94 20 Melee . | . . . . . . Ram 1 | . 1 . . . . Kick 7 | . . 7 . . . Crush . | . . . . . . Escape Stasis . | . . . . . . Rewire . | . . . . . . Trap . | . . . . . . Miscellaneous . | . . . . . . Route ------- -11/Junkyard -10/Materials -9/Materials -9/Mines -8/Materials -8/Storage History --------- Turn | Location | Event 9 | -11/Junkyard | Discovered new exit (range 15) 35 | -11/Junkyard | Entered Materials 325 | -10/Materials | Discovered new exit (range 11) 331 | -10/Materials | Entered another Materials area 331 | -9/Materials | Evolved 2 slots: Power x1, Propulsion x1 621 | -9/Materials | Discovered new exit (range 8) 1027 | -9/Materials | Build established: Scavenger-Mutant 1068 | -9/Materials | Identified exit to Mines 1307 | -9/Materials | Entered Mines 1307 | -9/Mines | Discovered new exit (range 10) 1319 | -9/Mines | Identified exit to Materials 1323 | -9/Mines | Entered Materials 1323 | -8/Materials | Evolved 2 slots: Propulsion x1, Utility x1 1569 | -8/Materials | Lost 5 parts (2p1n2w) 1750 | -8/Materials | Lost 5 parts (1p2n2w) 1750 | -8/Materials | Identified exit to Storage 1951 | -8/Materials | Entered Storage 2024 | -8/Storage | Repaired Imp. VTOL Module 2085 | -8/Storage | Learned location of Armory (-4) 2154 | -8/Storage | Core integrity fell below 50% 2163 | -8/Storage | Core integrity fell below 20% 2193 | -8/Storage | Destroyed by Y-45 Defender with Heavy Assault Rifle Last Messages --------------- 02161_ Broken Imp. VTOL Module destroyed. 02162_ Slug penetrates Wall. 02163_ Overheating: Core damaged (-71). 02165_ Overheating: System interference. 02165_ Imp. Heat Sink temporarily disabled. 02167_ Imp. Sensor Array destroyed. 02172_ R-06 Scavenger collects Airjet. 02174_ System corrupted: Heat flow error (+106). 02179_ Penetrated by Slug. 02179_ Surge Thruster destroyed. 02179_ K-01 Serf destroyed. 02179_ R-06 Scavenger collects Wheel. 02182_ Lgt. Nuclear Core destroyed. 02185_ Penetrated by Slug. 02185_ Prc. Beam Rifle destroyed. 02188_ H-55 Commando heat spikes uncontrollably. 02188_ Penetrated by Slug. 02188_ Prc. Beam Rifle destroyed. 02189_ H-55 Commando heat damages core (-9). 02193_ H-55 Commando heat short circuits Carbon-fiber Leg. Map ----- +----------------------------------------------------+ | ???????????????????????? ????????????????????????? | | ???????????????????????? ????????????????????????? | | ???????????????????????" ????????????????????????? | | ???????????????????????" ????????????????????????? | | ??????????????????????? ??????###???????????????? | | ??????????????????????? ?????? ???????????????? | | ??????????????????????? ??#??"" ""??#??#####????? | | ?????????????????????###+### """ """ #### #????? | | ?????????????????##### # """ """ ""## #????? | | ?????????????????? # """ """ Y"## #????? | | ??????????????????? *%= # """ """ ""?# ###### | | ???????????????????? = ? ???# # """ | | ?????????????????????# ??? ?????# # "R" | | ????????????## ######?# #???##+######## # " " | | ????????????# ?# Y #???# # | | ????????????# % # =%#####= + ! | | ????????????# =# * ! =%[ # ! | | ????????????# !%[ h######+######### ## ! | | ????????????? """ """ #! ## ###?# ## | | ????????????????? """?# ## "" ""#?# ####### | | ??????????????????""??# ## "T T"#?# #?????? | | ????????????????? ???# ## "" "#?# #?????? | | ??????????????????????# ## [ [ #?# #?????? | | ??????????????????????# ## [ #?# #####?? | | ??????????????????????# ## [ #### # #?? | | ??????????????????????# @## + #?? | | ??????????????????????# ####+# ###### #?? | | ??????????????????????+ #??# # ##?????####?? | | ??????????????????????# #??# ########??????????? | | ??????????????????????# #??# #?????????????????? | | ??????????????????????# ?? ?????????????????? | | ??????????????????????# ? % ?????????????????? | | ??????????????????????# ! ?????????????????? | | ?????????????????????? ?????????????????? | | ?????????????????????? ?????????????????? | | ?????????????????????? ?????????????????? | | ?????????????????????+##########?????????????????? | | ?????????????????????????????????????????????????? | | ?????????????????????????????????????????????????? | | ?????????????????????????????????????????????????? | | ?????????????????????????????????????????????????? | | ?????????????????????????????????????????????????? | | ?????????????????????????????????????????????????? | | ?????????????????????????????????????????????????? | | ?????????????????????????????????????????????????? | | ?????????????????????????????????????????????????? | | ?????????????????????????????????????????????????? | | ?????????????????????????????????????????????????? | | ?????????????????????????????????????????????????? | | ?????????????????????????????????????????????????? | +----------------------------------------------------+ Best States ------------- Heat Dissipation 53 Energy Generation 23 Energy Capacity 305 Matter Stores 300 Matter Capacity 300 Sight Range 16 Robot Scan Range 15 Terrain Scan Density 10 Additional Mass Support 9 Propulsion Shielding 33 Evasion (%) 64 Targeting Accuracy 5 Recoil Reduction 1 Item Schematics ----------------- None Robot Schematics ------------------ None Fabricated ------------ Nothing Alien Tech Used ----------------- None Achievements -------------- Party Time Challenges ------------ None Game ------ Seed BurstHackingRecalibrator Manual? 0 Play Time 00:49:28 Cumulative 35.2 hours Start 2023.03.13 @ 05:59:52 End 2023.03.13 @ 06:50:24 Sessions 1 Manual Loads 0 Difficulty Rogue Special Mode None Game No. 57 Rogue 56 Adventurer 1 Explorer 0 Win Type - Total 0 Types 0/0/0/0/0/0/0/0/0 Lore% 17 Gallery% 31 Achievement% 23 Wizard Run 0 Options --------- ASCII 0 Keyboard 0 Movement Mouse Keybinds 0 Fullscreen 1 Font 36/Smallcaps Map View 76x50 Tactical HUD 1 Map Filters NONE Filters NONE Steam 1 RUN: 502d8113-4b70-477b-aada-a08eb790c68f